{"text_format":"3","workbook":"xlsx","n_sheets":2,"sheets":["职位表","考试类别具体说明"],"not_rendered":{"defined_names":1},"read":"whole","date_system":"1900"}

{"sheet":"职位表","index":0,"n_rows":331,"n_cols":15,"rows_kept":331,"merged":[[1,0,1,14],[2,0,3,0],[2,1,3,1],[2,2,3,2],[2,3,3,3],[2,4,3,4],[2,5,2,6],[2,7,3,7],[2,8,3,8],[2,9,2,12],[2,13,3,13],[2,14,3,14],[328,0,328,13],[329,0,329,1],[330,0,330,13]]}
["附件2"]
["事业单位公开招考聘用工作人员职位表"]
["★单位代码","★单位名称","★职位代码","★职位名称","职位简介","★考试类别",null,"★考试类别代码","★招聘人数","★报考条件",{"$nulls":3},"其他资格条件","备注"]
[{"$nulls":5},"一级分类","二级分类",null,null,"学历、学位","大专专业","本科专业","研究生专业"]
["220101","盘州市第一小学",{"v":1,"d":"01"},"专业技术岗位","学校科研管理","中小学教师类（D类）","中小学教师类岗位",41,1,"研究生、硕士学位及以上","-","-","教育学类","有相应教师资格证书\n限2020年应届毕业生报考"]
["220101","盘州市第一小学",{"v":2,"d":"02"},"专业技术岗位","小学语文教育教学","中小学教师类（D类）","中小学教师类岗位",41,1,"本科、学士学位及以上","-","语文教师相关专业","语文教师相关专业","有相应教师资格证书、限2020年应届毕业生报考"]
["220101","盘州市第一小学",{"v":3,"d":"03"},"专业技术岗位","小学数学教育教学","中小学教师类（D类）","中小学教师类岗位",41,1,"本科、学士学位及以上","-","数学教师相关专业","数学教师相关专业","有相应教师资格证书、限2020年应届毕业生报考"]
["220102","盘州市第二小学",{"v":1,"d":"01"},"专业技术岗位","小学语文教育教学","中小学教师类（D类）","中小学教师类岗位",41,1,"本科、学士学位及以上","-","语文教师相关专业","语文教师相关专业","有相应教师资格证书、限2020年应届毕业生报考"]
["220102","盘州市第二小学",{"v":2,"d":"02"},"专业技术岗位","小学数学教育教学","中小学教师类（D类）","中小学教师类岗位",41,1,"本科、学士学位及以上","-","数学教师相关专业","数学教师相关专业","有相应教师资格证书、限2020年应届毕业生报考"]
["220102","盘州市第二小学",{"v":3,"d":"03"},"专业技术岗位","小学英语教育教学","中小学教师类（D类）","中小学教师类岗位",41,1,"本科、学士学位及以上","-","英语教师相关专业","英语教师相关专业","有相应教师资格证书、限2020年应届毕业生报考"]
["220103","盘州市第四小学",{"v":1,"d":"01"},"专业技术岗位","小学体育教育教学","中小学教师类（D类）","中小学教师类岗位",41,2,"本科及以上","-","体育教师相关专业","体育教师相关专业","有相应教师资格证书、限2020年应届毕业生报考"]
["220103","盘州市第四小学",{"v":2,"d":"02"},"专业技术岗位","小学信息技术教育教学","中小学教师类（D类）","中小学教师类岗位",41,1,"本科及以上","-","信息技术教师相关专业","信息技术教师相关专业","有相应教师资格证书、限2020年应届毕业生报考"]
["220104","盘州市第五小学",{"v":1,"d":"01"},"专业技术岗位","小学语文教育教学","中小学教师类（D类）","中小学教师类岗位",41,2,"本科及以上","-","语文教师相关专业","语文教师相关专业","有相应教师资格证书"]
["220104","盘州市第五小学",{"v":2,"d":"02"},"专业技术岗位","小学数学教育教学","中小学教师类（D类）","中小学教师类岗位",41,2,"本科及以上","-","数学教师相关专业","数学教师相关专业","有相应教师资格证书"]
["220104","盘州市第五小学",{"v":3,"d":"03"},"专业技术岗位","小学音乐教育教学","中小学教师类（D类）","中小学教师类岗位",41,2,"本科及以上","-","音乐教师相关专业","音乐教师相关专业","有相应教师资格证书"]
["220104","盘州市第五小学",{"v":4,"d":"04"},"专业技术岗位","小学体育教育教学","中小学教师类（D类）","中小学教师类岗位",41,3,"本科及以上","-","体育教师相关专业","体育教师相关专业","有相应教师资格证书"]
["220104","盘州市第五小学",{"v":5,"d":"05"},"专业技术岗位","小学美术教育教学","中小学教师类（D类）","中小学教师类岗位",41,1,"本科及以上","-","美术教师相关专业","美术教师相关专业","有相应教师资格证书"]
["220105","盘州市第六小学",{"v":1,"d":"01"},"专业技术岗位","小学语文教育教学","中小学教师类（D类）","中小学教师类岗位",41,1,"本科及以上","-","语文教师相关专业","语文教师相关专业","有小学语文教师资格证书、限2020年应届毕业生报考"]
["220105","盘州市第六小学",{"v":2,"d":"02"},"专业技术岗位","小学数学教育教学","中小学教师类（D类）","中小学教师类岗位",41,2,"本科及以上","-","数学教师相关专业","数学教师相关专业","有相应教师资格证书、限2020年应届毕业生报考"]
["220106","盘州市第八小学\n（盘州市红军小学）",{"v":1,"d":"01"},"专业技术岗位","小学语文教育教学","中小学教师类（D类）","中小学教师类岗位",41,2,"本科、学士学位及以上","-","语文教师相关专业","语文教师相关专业","有相应教师资格证书、限2020年应届毕业生报考"]
["220106","盘州市第八小学\n（盘州市红军小学）",{"v":2,"d":"02"},"专业技术岗位","小学数学教育教学","中小学教师类（D类）","中小学教师类岗位",41,1,"本科、学士学位及以上","-","数学教师相关专业","数学教师相关专业","有相应教师资格证书、限2020年应届毕业生报考"]
["220106","盘州市第八小学\n（盘州市红军小学）",{"v":3,"d":"03"},"专业技术岗位","小学英语教育教学","中小学教师类（D类）","中小学教师类岗位",41,1,"本科、学士学位及以上","-","英语教师相关专业","英语教师相关专业","有相应教师资格证书、限2020年应届毕业生报考"]
["220107","盘州市第九小学",{"v":1,"d":"01"},"专业技术岗位","小学语文教育教学","中小学教师类（D类）","中小学教师类岗位",41,1,"本科及以上","-","语文教师相关专业","语文教师相关专业","有相应教师资格证书、限2020年应届毕业生报考"]
["220107","盘州市第九小学",{"v":2,"d":"02"},"专业技术岗位","小学数学教育教学","中小学教师类（D类）","中小学教师类岗位",41,1,"本科及以上","-","数学教师相关专业","数学教师相关专业","有相应教师资格证书、限2020年应届毕业生报考"]
["220107","盘州市第九小学",{"v":3,"d":"03"},"专业技术岗位","小学体育教育教学","中小学教师类（D类）","中小学教师类岗位",41,1,"本科及以上","-","体育教师相关专业","体育教师相关专业","有相应教师资格证书、限2020年应届毕业生报考"]
["220107","盘州市第九小学",{"v":4,"d":"04"},"专业技术岗位","小学音乐教育教学","中小学教师类（D类）","中小学教师类岗位",41,1,"本科及以上","-","音乐教师相关专业","音乐教师相关专业","有相应教师资格证书、限2020年应届毕业生报考"]
["220108","盘州市丹霞镇森林小学",{"v":1,"d":"01"},"专业技术岗位","小学语文教育教学","中小学教师类（D类）","中小学教师类岗位",41,1,"大专及以上","语文教师相关专业","语文教师相关专业","语文教师相关专业","有相应教师资格证书"]
["220109","盘州市丹霞镇水塘小学",{"v":1,"d":"01"},"专业技术岗位","小学语文教育教学","中小学教师类（D类）","中小学教师类岗位",41,1,"大专及以上","语文教师相关专业","语文教师相关专业","语文教师相关专业","有相应教师资格证书"]
["220110","盘州市丹霞镇荒坝小学",{"v":1,"d":"01"},"专业技术岗位","小学音乐教育教学","中小学教师类（D类）","中小学教师类岗位",41,1,"大专及以上","音乐教师相关专业","音乐教师相关专业","音乐教师相关专业","有相应教师资格证书"]
["220111","盘州市丹霞镇铁厂小学",{"v":1,"d":"01"},"专业技术岗位","小学语文教育教学","中小学教师类（D类）","中小学教师类岗位",41,1,"大专及以上","语文教师相关专业","语文教师相关专业","语文教师相关专业","有相应教师资格证书"]
["220112","盘州市双凤镇马坡小学",{"v":1,"d":"01"},"专业技术岗位","幼儿园教师","中小学教师类（D类）","中小学教师类岗位",41,1,"大专及以上","学前教育","学前教育","学前教育","有相应教师资格证书"]
["220113","盘州市双凤镇小坪地小学",{"v":1,"d":"01"},"专业技术岗位","小学英语教育教学","中小学教师类（D类）","中小学教师类岗位",41,1,"本科及以上","-","英语教师相关专业","英语教师相关专业","有相应教师资格证书"]
["220114","盘州市保田镇鹅毛寨小学",{"v":1,"d":"01"},"专业技术岗位","小学语文教育教学","中小学教师类（D类）","中小学教师类岗位",41,1,"大专及以上","语文教师相关专业","语文教师相关专业","语文教师相关专业","有相应教师资格证书"]
["220115","盘州市新民镇马坪地小学",{"v":1,"d":"01"},"专业技术岗位","小学语文教育教学","中小学教师类（D类）","中小学教师类岗位",41,3,"本科及以上","-","语文教师相关专业","语文教师相关专业","有相应教师资格证书"]
["220115","盘州市新民镇马坪地小学",{"v":2,"d":"02"},"专业技术岗位","小学数学教育教学","中小学教师类（D类）","中小学教师类岗位",41,2,"本科及以上","-","数学教师相关专业","数学教师相关专业","有相应教师资格证书"]
["220115","盘州市新民镇马坪地小学",{"v":3,"d":"03"},"专业技术岗位","小学英语教育教学","中小学教师类（D类）","中小学教师类岗位",41,1,"本科及以上","-","英语教师相关专业","英语教师相关专业","有相应教师资格证书"]
["220116","盘州市新民镇俄项井小学",{"v":1,"d":"01"},"专业技术岗位","小学语文教育教学","中小学教师类（D类）","中小学教师类岗位",41,1,"本科及以上","-","语文教师相关专业","语文教师相关专业","有相应教师资格证书"]
["220117","盘州市新民镇嘿舍小学",{"v":1,"d":"01"},"专业技术岗位","小学语文教育教学","中小学教师类（D类）","中小学教师类岗位",41,1,"本科及以上","-","语文教师相关专业","语文教师相关专业","有相应教师资格证书"]
["220118","盘州市新民镇三官营小学",{"v":1,"d":"01"},"专业技术岗位","小学语文教育教学","中小学教师类（D类）","中小学教师类岗位",41,1,"本科及以上","-","语文教师相关专业","语文教师相关专业","有相应教师资格证书"]
["220119","盘州市鸡场坪镇大梨树小学",{"v":1,"d":"01"},"专业技术岗位","小学数学教育教学","中小学教师类（D类）","中小学教师类岗位",41,1,"大专及以上","数学教师相关专业","数学教师相关专业","数学教师相关专业","有相应教师资格证书"]
["220119","盘州市鸡场坪镇大梨树小学",{"v":2,"d":"02"},"专业技术岗位","小学语文教育教学","中小学教师类（D类）","中小学教师类岗位",41,1,"大专及以上","语文教师相关专业","语文教师相关专业","语文教师相关专业","有相应教师资格证书"]
["220120","盘州市鸡场坪镇歹马小学",{"v":1,"d":"01"},"专业技术岗位","小学数学教育教学","中小学教师类（D类）","中小学教师类岗位",41,1,"大专及以上","数学教师相关专业","数学教师相关专业","数学教师相关专业","有相应教师资格证书"]
["220121","盘州市鸡场坪镇黑冲小学",{"v":1,"d":"01"},"专业技术岗位","小学英语教育教学","中小学教师类（D类）","中小学教师类岗位",41,1,"大专及以上","英语教师相关专业","英语教师相关专业","英语教师相关专业","有相应教师资格证书"]
["220122","盘州市鸡场坪镇滑石小学",{"v":1,"d":"01"},"专业技术岗位","小学语文教育教学","中小学教师类（D类）","中小学教师类岗位",41,1,"大专及以上","语文教师相关专业","语文教师相关专业","语文教师相关专业","有相应教师资格证书"]
["220122","盘州市鸡场坪镇滑石小学",{"v":2,"d":"02"},"专业技术岗位","小学数学教育教学","中小学教师类（D类）","中小学教师类岗位",41,1,"大专及以上","数学教师相关专业","数学教师相关专业","数学教师相关专业","有相应教师资格证书"]
["220123","盘州市鸡场坪镇鸡场坪小学",{"v":1,"d":"01"},"专业技术岗位","小学语文教育教学","中小学教师类（D类）","中小学教师类岗位",41,2,"大专及以上","语文教师相关专业","语文教师相关专业","语文教师相关专业","有相应教师资格证书"]
["220123","盘州市鸡场坪镇鸡场坪小学",{"v":2,"d":"02"},"专业技术岗位","小学数学教育教学","中小学教师类（D类）","中小学教师类岗位",41,2,"大专及以上","数学教师相关专业","数学教师相关专业","数学教师相关专业","有相应教师资格证书"]
["220124","盘州市鸡场坪镇坪子小学",{"v":1,"d":"01"},"专业技术岗位","小学语文教育教学","中小学教师类（D类）","中小学教师类岗位",41,2,"大专及以上","语文教师相关专业","语文教师相关专业","语文教师相关专业","有相应教师资格证书"]
["220124","盘州市鸡场坪镇坪子小学",{"v":2,"d":"02"},"专业技术岗位","小学数学教育教学","中小学教师类（D类）","中小学教师类岗位",41,2,"大专及以上","数学教师相关专业","数学教师相关专业","数学教师相关专业","有相应教师资格证书"]
["220125","盘州市鸡场坪镇水井洼小学",{"v":1,"d":"01"},"专业技术岗位","小学数学教育教学","中小学教师类（D类）","中小学教师类岗位",41,1,"大专及以上","数学教师相关专业","数学教师相关专业","数学教师相关专业","有相应教师资格证书"]
["220126","盘州市鸡场坪镇松河小学",{"v":1,"d":"01"},"专业技术岗位","小学语文教育教学","中小学教师类（D类）","中小学教师类岗位",41,2,"大专及以上","语文教师相关专业","语文教师相关专业","语文教师相关专业","有相应教师资格证书"]
["220126","盘州市鸡场坪镇松河小学",{"v":2,"d":"02"},"专业技术岗位","小学数学教育教学","中小学教师类（D类）","中小学教师类岗位",41,2,"大专及以上","数学教师相关专业","数学教师相关专业","数学教师相关专业","有相应教师资格证书"]
["220127","盘州市翰林街道中心校（盘州市翰林街道华屯小学）",{"v":1,"d":"01"},"专业技术岗位","小学语文教育教学","中小学教师类（D类）","中小学教师类岗位",41,2,"本科及以上","-","语文教师相关专业","语文教师相关专业","有相应教师资格证书"]
["220127","盘州市翰林街道中心校（盘州市翰林街道华屯小学）",{"v":2,"d":"02"},"专业技术岗位","小学数学教育教学","中小学教师类（D类）","中小学教师类岗位",41,1,"本科及以上","-","数学教师相关专业","数学教师相关专业","有相应教师资格证书"]
["220128","盘州市第一幼儿园",{"v":1,"d":"01"},"专业技术岗位","幼儿园教师","中小学教师类（D类）","中小学教师类岗位",41,4,"大专及以上","学前教育","学前教育","学前教育","具有幼儿教师资格证、限2020年应届毕业生报考"]
["220128","盘州市第一幼儿园",{"v":2,"d":"02"},"专业技术岗位","幼儿园教师","中小学教师类（D类）","中小学教师类岗位",41,4,"大专及以上","学前教育","学前教育","学前教育","具有幼儿教师资格证"]
["220129","盘州市第三幼儿园",{"v":1,"d":"01"},"专业技术岗位","幼儿园教师","中小学教师类（D类）","中小学教师类岗位",41,1,"大专及以上","美术教育、学前教育 ","美术学类、学前教育","不限","具有幼儿教师资格证、限2020年应届毕业生报考"]
["220129","盘州市第三幼儿园",{"v":2,"d":"02"},"专业技术岗位","幼儿园教师","中小学教师类（D类）","中小学教师类岗位",41,1,"大专及以上","音乐教育、学前教育","音乐与舞蹈学类、学前教育","不限","限2020年应届毕业生报考"]
["220129","盘州市第三幼儿园",{"v":3,"d":"03"},"专业技术岗位","幼儿园教师","中小学教师类（D类）","中小学教师类岗位",41,1,"大专及以上","语文教育、学前教育","中国语言文学类、学前教育","不限","限2020年应届毕业生报考"]
["220129","盘州市第三幼儿园",{"v":4,"d":"04"},"专业技术岗位","幼儿园教师","中小学教师类（D类）","中小学教师类岗位",41,1,"大专及以上","体育教育、学前教育","体育学类、学前教育","不限","限2020年应届毕业生报考"]
["220129","盘州市第三幼儿园",{"v":5,"d":"05"},"专业技术岗位","幼儿园教师、办公室其他工作","中小学教师类（D类）","中小学教师类岗位",41,1,"大专及以上","计算机类","计算机类","不限","限2020年应届毕业生报考"]
["220130","盘州市第五幼儿园",{"v":1,"d":"01"},"专业技术岗位","幼儿园教师","中小学教师类（D类）","中小学教师类岗位",41,2,"大专及以上","学前教育","学前教育","学前教育","具备幼儿教师资格证"]
["220131","盘州市第八幼儿园",{"v":1,"d":"01"},"专业技术岗位","幼儿园教师","中小学教师类（D类）","中小学教师类岗位",41,4,"大专及以上","学前教育","学前教育","学前教育","具有幼儿教师资格证"]
["220131","盘州市第八幼儿园",{"v":2,"d":"02"},"专业技术岗位","幼儿园教师","中小学教师类（D类）","中小学教师类岗位",41,2,"大专及以上","学前教育","学前教育","学前教育","具有幼儿教师资格证、限2020年应届毕业生报考"]
["220131","盘州市第八幼儿园",{"v":3,"d":"03"},"专业技术岗位","幼儿园教师","中小学教师类（D类）","中小学教师类岗位",41,1,"本科及以上","-","美术学类、学前教育","不限","具有幼儿教师资格证"]
["220132","盘州市第十幼儿园\n（盘州市两河新区幼儿园）",{"v":1,"d":"01"},"专业技术岗位","幼儿园教师","中小学教师类（D类）","中小学教师类岗位",41,7,"大专及以上","学前教育","学前教育","学前教育","具有幼儿教师资格证、限2020年应届毕业生报考"]
["220133","盘州市盘西幼儿园（十一幼）",{"v":1,"d":"01"},"专业技术岗位","幼儿园教师","中小学教师类（D类）","中小学教师类岗位",41,4,"本科及以上","-","学前教育、美术学、体育教育、计算机科学与技术","不限","有幼儿教师资格证书、限2020年应届毕业生报考"]
["220134","盘州市第十二幼儿园",{"v":1,"d":"01"},"专业技术岗位","幼儿园教师","中小学教师类（D类）","中小学教师类岗位",41,8,"大专及以上","学前教育","学前教育","学前教育","具有幼儿教师资格证、限2020年应届毕业生报考"]
["220135","盘州市淤泥乡中心幼儿园",{"v":1,"d":"01"},"专业技术岗位","幼儿园教师","中小学教师类（D类）","中小学教师类岗位",41,4,"大专及以上","学前教育","学前教育","学前教育","具有幼儿教师资格证"]
["220136","盘州市羊场乡中心幼儿园",{"v":1,"d":"01"},"专业技术岗位","幼儿园教师","中小学教师类（D类）","中小学教师类岗位",41,3,"大专及以上","学前教育","学前教育","学前教育","具有幼儿教师资格证"]
["220137","盘州市羊场乡九村幼儿园",{"v":1,"d":"01"},"专业技术岗位","幼儿园教师","中小学教师类（D类）","中小学教师类岗位",41,3,"大专及以上","学前教育","学前教育","学前教育","具有幼儿教师资格证"]
["220138","盘州市新民镇中心幼儿园",{"v":1,"d":"01"},"专业技术岗位","幼儿园教师","中小学教师类（D类）","中小学教师类岗位",41,6,"大专及以上","学前教育","学前教育","学前教育","具有幼儿教师资格证"]
["220139","盘州市新民镇雨那幼儿园",{"v":1,"d":"01"},"专业技术岗位","幼儿园教师","中小学教师类（D类）","中小学教师类岗位",41,1,"大专及以上","学前教育","学前教育","学前教育","具有幼儿教师资格证"]
["220140","盘州市刘官街道中心幼儿园",{"v":1,"d":"01"},"专业技术岗位","幼儿园教师","中小学教师类（D类）","中小学教师类岗位",41,1,"大专及以上","学前教育","学前教育","学前教育","具有幼儿教师资格证"]
["220141","盘州市翰林街道红岩幼儿园",{"v":1,"d":"01"},"专业技术岗位","幼儿园教师","中小学教师类（D类）","中小学教师类岗位",41,13,"大专及以上","学前教育","学前教育","学前教育","具有幼儿教师资格证"]
["220142","盘州市丹霞镇苍龙幼儿园",{"v":1,"d":"01"},"专业技术岗位","幼儿园教师","中小学教师类（D类）","中小学教师类岗位",41,1,"大专及以上","学前教育","学前教育","学前教育","具有幼儿教师资格证"]
["220143","盘州市丹霞镇丹霞幼儿园",{"v":1,"d":"01"},"专业技术岗位","幼儿园教师","中小学教师类（D类）","中小学教师类岗位",41,4,"大专及以上","学前教育","学前教育","学前教育","具有幼儿教师资格证"]
["220144","盘州市丹霞镇板桥幼儿园",{"v":1,"d":"01"},"专业技术岗位","幼儿园教师","中小学教师类（D类）","中小学教师类岗位",41,1,"大专及以上","学前教育","学前教育","学前教育","具有幼儿教师资格证"]
["220145","盘州市保田镇扯拖幼儿园",{"v":1,"d":"01"},"专业技术岗位","幼儿园教师","中小学教师类（D类）","中小学教师类岗位",41,3,"大专及以上","学前教育","学前教育","学前教育","具有幼儿教师资格证"]
["220146","盘州市保田镇青云幼儿园",{"v":1,"d":"01"},"专业技术岗位","幼儿园教师","中小学教师类（D类）","中小学教师类岗位",41,1,"大专及以上","学前教育","学前教育","学前教育","具有幼儿教师资格证"]
["220147","盘州市保基乡红枫幼儿园",{"v":1,"d":"01"},"专业技术岗位","幼儿园教师","中小学教师类（D类）","中小学教师类岗位",41,5,"大专及以上","学前教育","学前教育","学前教育","具有幼儿教师资格证"]
["220148","盘州市鸡场坪镇松河幼儿园",{"v":1,"d":"01"},"专业技术岗位","幼儿园教师","中小学教师类（D类）","中小学教师类岗位",41,2,"大专及以上","学前教育","学前教育","学前教育","具有幼儿教师资格证"]
["220149","盘州市鸡场坪镇椅柯幼儿园",{"v":1,"d":"01"},"专业技术岗位","幼儿园教师","中小学教师类（D类）","中小学教师类岗位",41,2,"大专及以上","学前教育","学前教育","学前教育","具有幼儿教师资格证"]
["220150","盘州市响水镇中心幼儿园",{"v":1,"d":"01"},"专业技术岗位","幼儿园教师","中小学教师类（D类）","中小学教师类岗位",41,4,"大专及以上","学前教育","学前教育","学前教育","具有幼儿教师资格证"]
["220151","盘州市响水镇车田幼儿园",{"v":1,"d":"01"},"专业技术岗位","幼儿园教师","中小学教师类（D类）","中小学教师类岗位",41,3,"大专及以上","学前教育","学前教育","学前教育","具有幼儿教师资格证"]
["220152","盘州市双凤镇凤城幼儿园",{"v":1,"d":"01"},"专业技术岗位","幼儿园教师","中小学教师类（D类）","中小学教师类岗位",41,1,"大专及以上","学前教育","学前教育","学前教育","具有幼儿教师资格证"]
["220153","盘州市双凤镇西冲幼儿园",{"v":1,"d":"01"},"专业技术岗位","幼儿园教师","中小学教师类（D类）","中小学教师类岗位",41,1,"大专及以上","学前教育","学前教育","学前教育","具有幼儿教师资格证"]
["220154","盘州市柏果镇云中幼儿园",{"v":1,"d":"01"},"专业技术岗位","幼儿园教师","中小学教师类（D类）","中小学教师类岗位",41,1,"大专及以上","学前教育","学前教育","学前教育","具有幼儿教师资格证"]
["220155","盘州市柏果镇盘江幼儿园",{"v":1,"d":"01"},"专业技术岗位","幼儿园教师","中小学教师类（D类）","中小学教师类岗位",41,2,"大专及以上","学前教育","学前教育","学前教育","具有幼儿教师资格证"]
["220156","盘州市鸡场坪镇滑石幼儿园",{"v":1,"d":"01"},"专业技术岗位","幼儿园教师","中小学教师类（D类）","中小学教师类岗位",41,1,"大专及以上","学前教育","学前教育","学前教育","具有幼儿教师资格证"]
["220157","盘州市大山镇大山幼儿园",{"v":1,"d":"01"},"专业技术岗位","幼儿园教师","中小学教师类（D类）","中小学教师类岗位",41,1,"大专及以上","学前教育","学前教育","学前教育","具有幼儿教师资格证"]
["220158","盘州市人民医院",{"$f":"IF(B92=B91,C91+1,1)","v":{"v":1,"d":"01"}},"专业技术岗位","从事临床医疗工作","医疗卫生类（E类）","西医临床岗位",52,7,"本科、学士学位及以上",null,"临床医学","临床医学类","具有规培结业证书、执业医师资格证书","2020年规培结束人员可提供成绩通过证明或相关证明"]
["220158","盘州市人民医院",{"v":2,"d":"02"},"专业技术岗位","从事麻醉科医疗工作","医疗卫生类（E类）","西医临床岗位",52,1,"本科、学士学位及以上",null,"麻醉学","麻醉学","具有规培结业证书、执业医师资格证书","2020年规培结束人员可提供成绩通过证明或相关证明"]
["220158","盘州市人民医院",{"v":3,"d":"03"},"专业技术岗位","从事肿瘤科放射治疗工作","医疗卫生类（E类）","西医临床岗位",52,1,"本科、学士学位及以上",null,"放射医学","放射医学","具有规培结业证书、执业医师资格证书","2020年规培结束人员可提供成绩通过证明或相关证明"]
["220158","盘州市人民医院",{"v":4,"d":"04"},"专业技术岗位","从事重症医学科临床医疗工作","医疗卫生类（E类）","西医临床岗位",52,1,"本科、学士学位及以上",null,"临床医学、重症医学","临床医学"]
["220158","盘州市人民医院",{"v":5,"d":"05"},"专业技术岗位","从事急诊医学科临床医疗工作","医疗卫生类（E类）","西医临床岗位",52,1,"本科、学士学位及以上",null,"临床医学（急救医学方向）","急诊医学"]
["220158","盘州市人民医院",{"v":6,"d":"06"},"专业技术岗位","从事医学检验工作","医疗卫生类（E类）","医学技术岗位",55,1,"本科、学士学位及以上",null,"医学检验、医学检验技术","医学检验"]
["220158","盘州市人民医院",{"v":7,"d":"07"},"专业技术岗位","从事康复医学科相关工作","医疗卫生类（E类）","医学技术岗位",55,2,"本科、学士学位及以上",null,"康复治疗学","康复医学与理疗学"]
["220158","盘州市人民医院",{"v":8,"d":"08"},"专业技术岗位","从事眼科、耳鼻咽喉科临床医疗工作","医疗卫生类（E类）","西医临床岗位",52,2,"本科、学士学位及以上",null,"临床医学（眼耳鼻喉方向）","临床医学类","限2020年应届毕业生报考"]
["220158","盘州市人民医院",{"v":9,"d":"09"},"专业技术岗位","从事急诊医学科临床医疗工作","医疗卫生类（E类）","西医临床岗位",52,1,"本科、学士学位及以上",null,"临床医学（急救医学方向）","临床医学类","限2020年应届毕业生报考"]
["220158","盘州市人民医院",10,"专业技术岗位","从事新生儿科临床医疗工作","医疗卫生类（E类）","西医临床岗位",52,1,"本科、学士学位及以上",null,"临床医学（儿科方向）","临床医学类","限2020年应届毕业生报考"]
["220158","盘州市人民医院",11,"专业技术岗位","从事临床医疗工作","医疗卫生类（E类）","西医临床岗位",52,1,"研究生、硕士学位及以上",null,null,"临床医学类","限2020年应届毕业生报考"]
["220159","盘州市第二人民医院",{"v":1,"d":"01"},"专业技术岗位","临床诊疗","医疗卫生类（E类）","西医临床岗位",52,3,"本科、学士学位及以上","-","临床医学","内科学、外科学、耳鼻咽喉科学、眼科学、急诊医学","研究生需具有执业医师资格"]
["220159","盘州市第二人民医院",{"v":2,"d":"02"},"专业技术岗位","超声波诊断","医疗卫生类（E类）","西医临床岗位",52,1,"本科、学士学位及以上","-","医学影像学","影像医学与核医学","研究生需具有执业医师资格"]
["220159","盘州市第二人民医院",{"v":3,"d":"03"},"专业技术岗位","临床麻醉","医疗卫生类（E类）","西医临床岗位",52,1,"本科、学士学位及以上","-","麻醉学","麻醉学","研究生需具有执业医师资格"]
["220159","盘州市第二人民医院",{"v":4,"d":"04"},"专业技术岗位","临床诊疗","医疗卫生类（E类）","西医临床岗位",52,1,"本科、学士学位及以上",null,"临床医学","内科学、外科学、眼科学、急诊医学","限2020年应届毕业生报考、研究生需具有执业医师资格"]
["220159","盘州市第二人民医院",{"v":5,"d":"05"},"专业技术岗位","超声波诊断","医疗卫生类（E类）","西医临床岗位",52,1,"本科、学士学位及以上",null,"医学影像学","影像医学与核医学","限2020年应届毕业生报考、研究生需具有执业医师资格"]
["220160","盘州市妇幼保健院",{"v":1,"d":"01"},"专业技术岗位","临床医学","医疗卫生类（E类）","西医临床岗位",52,3,"本科及以上","-","临床医学","临床医学"]
["220160","盘州市妇幼保健院",{"v":2,"d":"02"},"专业技术岗位","麻醉学","医疗卫生类（E类）","西医临床岗位",52,1,"本科及以上","-","麻醉学","麻醉学"]
["220160","盘州市妇幼保健院",{"v":3,"d":"03"},"专业技术岗位","医学影像学","医疗卫生类（E类）","西医临床岗位",52,1,"本科及以上","-","医学影像学","医学影像学"]
["220161","盘州市疾病预防控制中心",{"v":1,"d":"01"},"专业技术岗位","卫生检验","医疗卫生类（E类）","医学技术岗位",55,1,"本科及以上","-","医学检验技术、卫生检验与检疫","临床检验诊断学"]
["220161","盘州市疾病预防控制中心",{"v":2,"d":"02"},"专业技术岗位","疾病预防控制","医疗卫生类（E类）","公共卫生管理岗位",56,4,"本科及以上","-","预防医学、临床医学类、中医学、中西医临床医学\n","流行病与卫生统计学"]
["220162","盘州市中心血库",{"v":1,"d":"01"},"专业技术岗位","临床医学","医疗卫生类（E类）","西医临床岗位",52,1,"本科及以上","-","临床医学","临床医学"]
["220162","盘州市中心血库",{"v":2,"d":"02"},"专业技术岗位","医学技术","医疗卫生类（E类）","医学技术岗位",55,1,"本科及以上","-","医学检验技术、医学实验技术、卫生检验检疫","临床检验诊断学"]
["220163","盘州市卫生紧急救援指挥中心",{"v":1,"d":"01"},"专业技术岗位","紧急医学救援调度","医疗卫生类（E类）","医学技术岗位",55,2,"本科及以上","-","医学类","医学类"]
["220164","盘州市中医院",{"v":1,"d":"01"},"专业技术岗位","中西医结合","医疗卫生类（E类）","中医临床岗位",51,6,"本科、学士学位及以上","-","中西医结合","中西医结合"]
["220164","盘州市中医院",{"v":2,"d":"02"},"专业技术岗位","中医学","医疗卫生类（E类）","中医临床岗位",51,2,"本科、学士学位及以上","-","中医学","中医学"]
["220164","盘州市中医院",{"v":3,"d":"03"},"专业技术岗位","临床医学","医疗卫生类（E类）","西医临床岗位",52,2,"本科、学士学位及以上","-","临床医学","临床医学"]
["220164","盘州市中医院",{"v":4,"d":"04"},"专业技术岗位","医学影像","医疗卫生类（E类）","西医临床岗位",52,2,"本科、学士学位及以上","-","医学影像学","影像医学与核医学"]
["220164","盘州市中医院",{"v":5,"d":"05"},"专业技术岗位","会计","综合管理类（A类）","综合管理类岗位",11,2,"本科及以上","-","会计学、财务管理、财务会计","会计学、财务管理"]
["220164","盘州市中医院",{"v":6,"d":"06"},"专业技术岗位","从事内科、康复、中医","医疗卫生类（E类）","中医临床岗位",51,4,"本科、学士学位及以上",null,"中医学、中西医临床医学","中医学类、中西医结合类","限2020年应届毕业生报考"]
["220164","盘州市中医院",{"v":7,"d":"07"},"专业技术岗位","从事外科、妇产科、麻醉科、内科","医疗卫生类（E类）","西医临床岗位",52,5,"本科、学士学位及以上",null,"临床医学","临床医学类","限2020年应届毕业生报考"]
["220165","盘州市安宁医院",{"v":1,"d":"01"},"管理岗位","从事会计相关工作","综合管理类（A类）","综合管理类岗位",11,1,"本科、学士学位及以上","-","会计学、财务管理、财务会计","会计学、财务管理、财务会计"]
["220165","盘州市安宁医院",{"v":2,"d":"02"},"专业技术岗位","从事医学影像工作","医疗卫生类（E类）","医学技术岗位",55,1,"本科、学士学位及以上","-","医学影像学","医学影像学"]
["220165","盘州市安宁医院",{"v":3,"d":"03"},"专业技术岗位","从事临床用药指导工作","医疗卫生类（E类）","药剂岗位",53,1,"本科、学士学位及以上","-","临床药学","临床药学"]
["220165","盘州市安宁医院",{"v":4,"d":"04"},"专业技术岗位","从事中西医医师工作","医疗卫生类（E类）","中医临床岗位",51,2,"本科、学士学位及以上","-","中西医结合专业","中西医结合专业"]
["220165","盘州市安宁医院",{"v":5,"d":"05"},"专业技术岗位","从事临床医师工作","医疗卫生类（E类）","西医临床岗位",52,2,"大专及以上","临床医学类","临床医学类","临床医学类","具有助理医师资格证或执业医师资格证（考试成绩通过者视为具有）"]
["220165","盘州市安宁医院",{"v":6,"d":"06"},"专业技术岗位","从事中医临床工作","医疗卫生类（E类）","中医临床岗位",51,1,"本科及以上","-","中医学","中医学"]
["220165","盘州市安宁医院",{"v":7,"d":"07"},"专业技术岗位","从事临床医师工作","医疗卫生类（E类）","西医临床岗位",52,2,"本科、学士学位及以上","-","临床医学类","临床医学类"]
["220165","盘州市安宁医院",{"v":8,"d":"08"},"专业技术岗位","从事临床护理工作","医疗卫生类（E类）","护理岗位",54,1,"本科、学士学位及以上",null,"护理学","护理学","限男性报考，限2020年应届毕业生报考"]
["220165","盘州市安宁医院",{"v":9,"d":"09"},"专业技术岗位","从事临床护理工作","医疗卫生类（E类）","护理岗位",54,1,"本科、学士学位及以上",null,"护理学","护理学","限女性报考，限2020年应届毕业生报考"]
["220166","盘州市纪委监委信息技术保障中心",{"v":1,"d":"01"},"专业技术岗位","计算机维护管理和信息技术保障","综合管理类（A类）","综合管理类岗位",11,1,"本科、学士学位及以上","-","计算机类","计算机类","中共党员、取得计算机专业二级等级证书及以上"]
["220167","盘州市融媒体中心",{"v":1,"d":"01"},"专业技术岗位","新闻采编","综合管理类（A类）","综合管理类岗位",11,1,"本科及以上","-","新闻传播学、中国语言文学类","不限"]
["220168","盘州市禁毒工作服务中心",{"v":1,"d":"01"},"管理岗位","综合禁毒","综合管理类（A类）","综合管理类岗位",11,2,"本科、学士学位及以上","-","不限","不限"]
["220169","盘州市直属机关党员教育服务中心",{"v":1,"d":"01"},"管理岗位","从事机关党建工作","综合管理类（A类）","综合管理类岗位",11,1,"本科、学士学位及以上","-","不限","不限"]
["220170","盘州市青少年活动中心",{"v":1,"d":"01"},"管理岗位","办公室日常工作","综合管理类（A类）","综合管理类岗位",11,1,"本科、学士学位及以上","-","不限","不限","限2020年应届毕业生报考"]
["220171","盘州市招商投资促进服务中心",{"v":1,"d":"01"},"管理岗位","从事办公室文秘工作","综合管理类（A类）","综合管理类岗位",11,1,"本科、学士学位及以上","-","不限","不限"]
["220172","盘州市人民政府政务服务中心",{"v":1,"d":"01"},"管理岗位","工作人员","综合管理类（A类）","综合管理类岗位",11,2,"本科、学士学位及以上","-","不限","不限"]
["220173","盘州市房屋征收服务中心",{"v":1,"d":"01"},"专业技术岗位","负责国有土地上房屋征收日常工作。","综合管理类（A类）","综合管理类岗位",11,1,"本科、学士学位及以上","-","建筑学、城乡规划、土木工程","土木工程类"]
["220174","盘州市易地扶贫搬迁后续发展中心",{"v":1,"d":"01"},"管理岗位","计算机日常工作","综合管理类（A类）","综合管理类岗位",11,1,"本科、学士学位及以上","-","不限","不限"]
["220175","盘州市水库移民后期扶持中心",{"v":1,"d":"01"},"专业技术岗位","农业技术推广指导","综合管理类（A类）","综合管理类岗位",11,1,"本科、学士学位及以上","-","农学类","不限"]
["220176","盘州市社会帮扶服务中心",{"v":1,"d":"01"},"管理岗位","服务全市社会帮扶工作，做好社会帮扶工作的宣传、交流、服务等。","综合管理类（A类）","综合管理类岗位",11,1,"本科及以上","-","不限","不限"]
["220177","盘州市扶贫开发贫困监测中心",{"v":1,"d":"01"},"管理岗位","负责管理精准扶贫信息服务平台，拓展扶贫开发业务。","综合管理类（A类）","综合管理类岗位",11,1,"本科及以上","-","不限","不限"]
["220178","盘州市扶贫开发技术服务中心",{"v":1,"d":"01"},"专业技术岗位","负责种养殖项目培训、为种养殖项目提供技术咨询等服务。","综合管理类（A类）","综合管理类岗位",11,1,"本科、学士学位及以上","-","农学类","农学类"]
["220179","盘州市商务服务中心",{"v":1,"d":"01"},"管理岗位","商务服务工作","综合管理类（A类）","综合管理类岗位",11,1,"本科及以上","-","不限","不限"]
["220180","盘州市科技事业发展中心",{"v":1,"d":"01"},"专业技术岗位","科技事业服务指导","综合管理类（A类）","综合管理类岗位",11,1,"本科及以上","-","工学类","不限"]
["220181","盘州市医疗保障服务中心",{"v":1,"d":"01"},"专业技术岗位","对“两定”医疗机构医保报销开展监督检查，相关医保费用进行审核。","综合管理类（A类）","综合管理类岗位",11,1,"本科、学士学位及以上","-","临床医学、中医学、中西医临床医学","不限"]
["220182","盘州市公证处",{"v":1,"d":"01"},"管理岗位","依申请办理各类公证业务。","综合管理类（A类）","综合管理类岗位",11,1,"本科、学士学位及以上","-","法学类（一级学科）","法学类（一级学科）","通过国家司法考试或通过国家统一法律职业资格考试并取得C证及以上资格证书"]
["220183","盘州市投资评审中心",{"v":1,"d":"01"},"专业技术岗位","基本建设项目的评审工作","综合管理类（A类）","综合管理类岗位",11,2,"本科、学士学位及以上","-","土木类","土木工程类"]
["220184","盘州市公路养护事业发展中心",{"v":1,"d":"01"},"专业技术岗位","为全市农村公路的养护工作提供专业技术保障。","综合管理类（A类）","综合管理类岗位",11,2,"本科、学士学位及以上","-","土木工程、道路桥梁与渡河工程、交通工程、工程管理（工学学士学位）","土木工程、岩土工程、结构工程、桥梁与隧道工程"]
["220185","盘州市道路运输事业发展中心",{"v":1,"d":"01"},"管理岗位","为全市道路运输行业健康有序发展提供服务保障。","综合管理类（A类）","综合管理类岗位",11,2,"本科、学士学位及以上","-","不限","不限"]
["220185","盘州市道路运输事业发展中心",{"v":2,"d":"02"},"专业技术岗位","为全市道路运输行业健康有序发展提供专业技术保障。","综合管理类（A类）","综合管理类岗位",11,1,"本科、学士学位及以上","-","交通运输、交通工程、交通管理工程、交通管理（工学学士学位）、物流管理、物流工程","交通信息工程与控制、交通运输工程、交通运输规划与管理"]
["220186","盘州市地方海事航务服务中心",{"v":1,"d":"01"},"专业技术岗位","为全市水路运输行业健康有序发展提供专业技术保障。","综合管理类（A类）","综合管理类岗位",11,1,"本科、学士学位及以上","-","土木工程、道路桥梁与渡河工程、交通工程、港口航道与海岸工程、船舶与海洋工程、工程管理（工学学士学位）","土木工程、岩土工程、结构工程、桥梁与隧道工程、船舶与海洋工程"]
["220187","盘州市交通建设质量安全服务中心",{"v":1,"d":"01"},"专业技术岗位","为全市交通建设质量安全提供专业技术保障。","综合管理类（A类）","综合管理类岗位",11,1,"本科、学士学位及以上","-","土木工程、道路桥梁与渡河工程、交通工程、安全工程、工程管理（工学学士学位）","土木工程、岩土工程、结构工程、桥梁与隧道工程"]
["220188","盘州市大洞竹海风景名胜管理处",{"v":1,"d":"01"},"专业技术岗位","风景名胜区管理","综合管理类（A类）","综合管理类岗位",11,1,"本科及以上","-","不限","不限"]
["220189","盘州市哒啦仙谷旅游度假区管理处",{"$f":"IF(B156=B155,C155+1,1)","v":{"v":1,"d":"01"}},"专业技术岗位","旅游景区管理","综合管理类（A类）","综合管理类岗位",11,1,"本科及以上","-","不限","不限"]
["220190","盘州市古银杏风景名胜管理处",{"v":1,"d":"01"},"专业技术岗位","旅游景区管理","综合管理类（A类）","综合管理类岗位",11,1,"本科、学士学位及以上","-","不限","不限"]
["220191","盘州市文化市场综合行政执法大队",{"v":1,"d":"01"},"管理岗位","文化旅游市场管理","综合管理类（A类）","综合管理类岗位",11,1,"本科及以上","-","不限","不限"]
["220192","盘州市市场监督管理综合服务中心",{"v":1,"d":"01"},"管理岗位","为市场监管提供服务","综合管理类（A类）","综合管理类岗位",11,15,"本科、学士学位及以上","-","不限","不限"]
["220192","盘州市市场监督管理综合服务中心",{"v":2,"d":"02"},"管理岗位","为行政执法提供服务","综合管理类（A类）","综合管理类岗位",11,5,"本科、学士学位及以上","-","不限","不限","限盘州市建档立卡贫困户报考"]
["220192","盘州市市场监督管理综合服务中心",{"v":3,"d":"03"},"专业技术岗位","市场监督管理系统信息化建设","综合管理类（A类）","综合管理类岗位",11,1,"本科、学士学位及以上","-","计算机类；食品科学与工程类","不限","限工学或理学学士学位报考"]
["220193","盘州市消费者投诉举报中心",{"v":1,"d":"01"},"管理岗位","消费者投诉受理督办","综合管理类（A类）","综合管理类岗位",11,2,"本科、学士学位及以上","-","不限","不限"]
["220194","盘州市检验检测中心",{"v":1,"d":"01"},"专业技术岗位","计量检定和产品质量检验检测","综合管理类（A类）","综合管理类岗位",11,1,"本科、学士学位及以上","-","食品科学与工程类；生物工程类；化学类","不限","限工学或理学学士学位报考"]
["220195","盘州市园林绿化管理站",{"v":1,"d":"01"},"专业技术岗位","城区园林绿化管理养护","综合管理类（A类）","综合管理类岗位",11,2,"本科及以上","-","风景园林、园艺、园林","不限"]
["220196","盘州市城市管理综合行政执法大队",{"v":1,"d":"01"},"管理岗位","城市管理综合行政执法","综合管理类（A类）","综合管理类岗位",11,8,"大专及以上","不限","不限","不限"]
["220197","盘州市城市管理综合行政执法局大山分局",{"v":1,"d":"01"},"管理岗位","城市管理综合行政执法","综合管理类（A类）","综合管理类岗位",11,1,"大专及以上","不限","不限","不限"]
["220198","盘州市城市管理综合行政执法局鸡场坪分局",{"v":1,"d":"01"},"管理岗位","城市管理综合行政执法","综合管理类（A类）","综合管理类岗位",11,1,"大专及以上","不限","不限","不限"]
["220199","盘州市城市管理综合行政执法局盘关分局",{"v":1,"d":"01"},"管理岗位","城市管理综合行政执法","综合管理类（A类）","综合管理类岗位",11,1,"大专及以上","不限","不限","不限"]
["220200","盘州市城市管理综合行政执法局淤泥分局",{"v":1,"d":"01"},"管理岗位","城市管理综合行政执法","综合管理类（A类）","综合管理类岗位",11,1,"大专及以上","不限","不限","不限"]
["220201","盘州市哒啦仙谷景区城市管理综合行政执法中队",{"v":1,"d":"01"},"管理岗位","城市管理综合行政执法","综合管理类（A类）","综合管理类岗位",11,1,"大专及以上","不限","不限","不限"]
["220202","盘州市农业综合行政执法大队",{"v":1,"d":"01"},"管理岗位","农业综合执法","综合管理类（A类）","综合管理类岗位",11,4,"本科及以上","-","不限","不限"]
["220203","盘州市农业科学研究所",{"v":1,"d":"01"},"专业技术岗位","农业技术推广指导","综合管理类（A类）","综合管理类岗位",11,1,"本科、学士学位及以上","-","不限","不限"]
["220204","盘州市保基应急服务中心",{"v":1,"d":"01"},"专业技术岗位","应急综合管理工作","综合管理类（A类）","综合管理类岗位",11,1,"本科、学士学位及以上","-","不限","不限"]
["220204","盘州市保基应急服务中心",{"v":2,"d":"02"},"专业技术岗位","应急综合管理工作","综合管理类（A类）","综合管理类岗位",11,2,"本科、学士学位及以上","-","不限","不限"]
["220205","盘州市民主应急服务中心",{"v":1,"d":"01"},"专业技术岗位","应急综合管理工作","综合管理类（A类）","综合管理类岗位",11,1,"本科、学士学位及以上","-","不限","不限"]
["220206","盘州市旧营应急服务中心",{"v":1,"d":"01"},"专业技术岗位","应急综合管理工作","综合管理类（A类）","综合管理类岗位",11,1,"本科、学士学位及以上","-","不限","不限"]
["220207","盘州市保田片区水务服务中心",{"v":1,"d":"01"},"专业技术岗位","水务建设、管理","综合管理类（A类）","综合管理类岗位",11,1,"本科及以上",null,"水利水电工程、水文与水资源工程、地质工程、工程管理","不限"]
["220208","盘州市大山片区水务服务中心",{"v":1,"d":"01"},"专业技术岗位","水务建设、管理","综合管理类（A类）","综合管理类岗位",11,2,"本科及以上",null,"水利水电工程、水文与水资源工程、地质工程、环境科学、工程管理","不限"]
["220209","盘州市羊场片区水务服务中心",{"v":1,"d":"01"},"专业技术岗位","水务建设、管理","综合管理类（A类）","综合管理类岗位",11,1,"本科及以上",null,"水利水电工程、水文与水资源工程、地质工程、工程管理","不限"]
["220210","盘州市淤泥片区水务服务中心",{"v":1,"d":"01"},"专业技术岗位","水务建设、管理","综合管理类（A类）","综合管理类岗位",11,1,"本科及以上",null,"水利水电工程、水文与水资源工程、地质工程、工程管理","不限"]
["220211","盘州市柏果片区水务服务中心",{"v":1,"d":"01"},"专业技术岗位","水务建设、管理","综合管理类（A类）","综合管理类岗位",11,1,"本科及以上",null,"水利水电工程、水文与水资源工程、地质工程、环境科学、工程管理","不限"]
["220212","盘州市坪地片区水务服务中心",{"v":1,"d":"01"},"专业技术岗位","水务建设、管理","综合管理类（A类）","综合管理类岗位",11,2,"本科及以上",null,"水利水电工程、水文与水资源工程、地质工程、环境科学、工程管理","不限"]
["220213","盘州市鸡场坪片区水务服务中心",{"v":1,"d":"01"},"专业技术岗位","水务建设、管理","综合管理类（A类）","综合管理类岗位",11,1,"本科及以上",null,"水利水电工程、水文与水资源工程、地质工程、环境科学、工程管理","不限"]
["220214","盘州市双凤片区水务服务中心",{"v":1,"d":"01"},"专业技术岗位","水务建设、管理","综合管理类（A类）","综合管理类岗位",11,2,"本科及以上",null,"水利水电工程、水文与水资源工程、地质工程、环境科学、工程管理","不限"]
["220215","六盘水乌蒙山旅游度假区管理委员会生态旅游局",{"v":1,"d":"01"},"管理岗位","旅游营销","综合管理类（A类）","综合管理类岗位",11,1,"本科、学士学位及以上","-","不限","不限"]
["220216","盘州市不动产登记中心",{"v":1,"d":"01"},"专业技术岗位","不动产登记相关工作","综合管理类（A类）","综合管理类岗位",11,2,"本科、学士学位及以上","-","土木类","不限"]
["220216","盘州市不动产登记中心",{"v":2,"d":"02"},"专业技术岗位","不动产登记相关工作","综合管理类（A类）","综合管理类岗位",11,2,"本科、学士学位及以上","-","建筑类","不限"]
["220217","盘州市林业科技推广站",{"v":1,"d":"01"},"专业技术岗位","林业科技推广工作","综合管理类（A类）","综合管理类岗位",11,1,"本科、学士学位及以上","-","林学类","不限"]
["220218","盘州市森林和草原病虫害检疫防治站",{"v":1,"d":"01"},"专业技术岗位","森林和草原保护工作","综合管理类（A类）","综合管理类岗位",11,1,"本科、学士学位及以上","-","环境科学与工程类","不限"]
["220219","盘州市森林资源工作站",{"v":1,"d":"01"},"专业技术岗位","森林资源保护工作","综合管理类（A类）","综合管理类岗位",11,1,"本科、学士学位及以上","-","自然保护与环境生态类","不限"]
["220220","盘州市营林与产业服务中心",{"v":1,"d":"01"},"专业技术岗位","森林资源管理及相关工作","综合管理类（A类）","综合管理类岗位",11,1,"本科、学士学位及以上","-","林学类","不限"]
["220221","盘州市自然资源空间规划所",{"v":1,"d":"01"},"专业技术岗位","自然资源规划管理工作","综合管理类（A类）","综合管理类岗位",11,1,"本科、学士学位及以上","-","城乡规划、建筑学、人文地理与城乡规划","不限"]
["220222","盘州市城乡统计服务中心",{"v":1,"d":"01"},"管理岗位","综合统计","综合管理类（A类）","综合管理类岗位",11,3,"本科、学士学位及以上","-","不限","不限",null,"因工作需要，工作地点在乡镇。"]
["220222","盘州市城乡统计服务中心",{"v":2,"d":"02"},"专业技术岗位","综合统计","综合管理类（A类）","综合管理类岗位",11,2,"本科、学士学位及以上","-","统计学类","不限",null,"因工作需要，工作地点在乡镇。"]
["220222","盘州市城乡统计服务中心",{"v":3,"d":"03"},"专业技术岗位","综合统计","综合管理类（A类）","综合管理类岗位",11,1,"本科、学士学位及以上","-","统计学类","不限","限男性报考"]
["220222","盘州市城乡统计服务中心",{"v":4,"d":"04"},"专业技术岗位","综合统计","综合管理类（A类）","综合管理类岗位",11,1,"本科、学士学位及以上","-","统计学类","不限","限女性报考"]
["220222","盘州市城乡统计服务中心",{"v":5,"d":"05"},"专业技术岗位","会计工作","综合管理类（A类）","综合管理类岗位",11,1,"本科、学士学位及以上","-","会计学、财务管理、审计学","不限"]
["220223","盘州市统计普查中心",{"v":1,"d":"01"},"管理岗位","办公室文秘工作","综合管理类（A类）","综合管理类岗位",11,1,"本科、学士学位及以上","-","不限","不限"]
["220223","盘州市统计普查中心",{"v":2,"d":"02"},"专业技术岗位","综合统计","综合管理类（A类）","综合管理类岗位",11,1,"本科、学士学位及以上","-","统计学类","不限"]
["220224","贵州盘北经济开发区建设服务中心",{"v":1,"d":"01"},"专业技术岗位","依法监督检查辖区工贸行业、危化企业、施工项目安全生产工作；指导监督相关行业安全标准化工作等","综合管理类（A类）","综合管理类岗位",11,1,"本科、学士学位及以上",null,"安全工程，应用化学，精细化学品生产技术，应用化工技术，建筑工程技术,消防工程","安全技术及工程，化学工程与技术"]
["220224","贵州盘北经济开发区建设服务中心",{"v":2,"d":"02"},"专业技术岗位","主要从事经济、统计方面工作","综合管理类（A类）","综合管理类岗位",11,1,"本科、学士学位及以上",null,"经济学专业、统计学类"]
["220224","贵州盘北经济开发区建设服务中心",{"v":3,"d":"03"},"专业技术岗位","从事质量技术监督和施工管理","综合管理类（A类）","综合管理类岗位",11,1,"本科、学士学位及以上",null,"土木工程、工程管理、城乡规划","土木工程（结构工程方向、市政工程方向）","本科土木工程专业要结构工程方向、市政工程方向"]
["220225","盘州市事业单位人事管理服务中心",{"v":1,"d":"01"},"管理岗位","事业单位人事管理日常工作","综合管理类（A类）","综合管理类岗位",11,1,"本科、学士学位及以上","-","不限","不限",null,"因工作经常加班，适宜男性报考"]
["220225","盘州市事业单位人事管理服务中心",{"v":2,"d":"02"},"专业技术岗位","事业单位人事管理日常工作","综合管理类（A类）","综合管理类岗位",11,1,"本科、学士学位及以上","-","会计及相关专业"]
["220226","盘州市教育工程装备服务中心",{"v":1,"d":"01"},"专业技术岗位","教育信息化建设","综合管理类（A类）","综合管理类岗位",11,2,"本科、学士学位及以上",null,"计算机及相关专业","计算机及相关专业"]
["220227","盘州市教育管理服务中心",{"v":1,"d":"01"},"专业技术岗位","财务管理","综合管理类（A类）","综合管理类岗位",11,2,"本科、学士学位及以上",null,"会计及相关专业","会计及相关专业"]
["220228","盘州市劳动人事争议仲裁院",{"v":1,"d":"01"},"管理岗位","劳动人事争议仲裁日常工作","综合管理类（A类）","综合管理类岗位",11,1,"本科、学士学位及以上","-","法学类（二级学科）","法学类（二级学科）"]
["220229","盘州市公安综合事务中心",{"v":1,"d":"01"},"管理岗位","办公室日常工作","综合管理类（A类）","综合管理类岗位",11,2,"本科、学士学位及以上","-","不限","不限","限男性报考"]
["220229","盘州市公安综合事务中心",{"v":2,"d":"02"},"管理岗位","办公室日常工作","综合管理类（A类）","综合管理类岗位",11,2,"本科、学士学位及以上","-","不限","不限","限女性报考"]
["220230","盘州市金融工作服务中心",{"v":1,"d":"01"},"专业技术岗位","由市委、市政府安排相关工作","综合管理类（A类）","综合管理类岗位",11,4,"本科、学士学位及以上","-","经济学类、金融学类、经济与贸易类","经济学门类"]
["220230","盘州市金融工作服务中心",{"v":2,"d":"02"},"专业技术岗位","由市委、市政府安排相关工作","综合管理类（A类）","综合管理类岗位",11,2,"本科、学士学位及以上","-","机械类、土木类、水利类、交通运输类、航空航天类、建筑类、安全科学与工程类","机械工程类、土木工程类、水利工程类、交通运输工程类、建筑学类、安全科学与工程类"]
["220230","盘州市金融工作服务中心",{"v":3,"d":"03"},"专业技术岗位","由市委、市政府安排相关工作","综合管理类（A类）","综合管理类岗位",11,2,"本科、学士学位及以上","-","管理科学与工程类、工商管理类","管理科学与工程类、工商管理类"]
["220231","盘州市重点项目管理中心",{"v":1,"d":"01"},"专业技术岗位","由市委、市政府安排相关工作","综合管理类（A类）","综合管理类岗位",11,1,"本科、学士学位及以上","-","经济学类、金融学类、经济与贸易类","经济学门类"]
["220231","盘州市重点项目管理中心",{"v":2,"d":"02"},"专业技术岗位","由市委、市政府安排相关工作","综合管理类（A类）","综合管理类岗位",11,4,"本科、学士学位及以上","-","机械类、土木类、水利类、交通运输类、航空航天类、建筑类、安全科学与工程类","机械工程类、土木工程类、水利工程类、交通运输工程类、建筑学类、安全科学与工程类"]
["220231","盘州市重点项目管理中心",{"v":3,"d":"03"},"专业技术岗位","由市委、市政府安排相关工作","综合管理类（A类）","综合管理类岗位",11,2,"本科、学士学位及以上","-","管理科学与工程类、工商管理类","管理科学与工程类、工商管理类"]
["220231","盘州市重点项目管理中心",{"v":4,"d":"04"},"专业技术岗位","由市委、市政府安排相关工作","综合管理类（A类）","综合管理类岗位",11,2,"本科、学士学位及以上","-","电气类、能源动力类、自动化类","不限"]
["220232","盘州市胜境财政所",{"v":1,"d":"01"},"管理岗位","财务相关工作","综合管理类（A类）","综合管理类岗位",11,1,"大专及以上","会计、会计与审计、财务管理","会计学、财务会计、财务管理、审计学","不限"]
["220233","盘州市亦资财政所",{"v":1,"d":"01"},"管理岗位","财务会计及财务管理","综合管理类（A类）","综合管理类岗位",11,1,"本科、学士学位及以上","-","会计学、财务管理，财政学","会计学、财务管理，财政学"]
[{"$f":"IF(B218=B219,A218,A218+1)","v":220234},"盘州市红果街道卫生服务中心",{"v":1,"d":"01"},"专业技术岗位","卫生服务中心","医疗卫生类（E类）","西医临床岗位",52,2,"本科、学士学位及以上",null,"临床医学、中医学、中西医结合临床",null,"限2020年应届毕业生报考"]
[{"$f":"IF(B219=B220,A219,A219+1)","v":220235},"盘州市刘官街道人力资源和社会保障服务中心",{"$f":"IF(B220=B218,C218+1,1)","v":{"v":1,"d":"01"}},"管理岗位","人力资源管理","综合管理类（A类）","综合管理类岗位",11,1,"本科、学士学位及以上",null,"不限",null,"限四项目人员"]
[220236,"盘州市刘官街道科技宣教文化信息服务中心",{"$f":"IF(B221=B220,C220+1,1)","v":{"v":1,"d":"01"}},"管理岗位","文化事业管理、信息宣传服务。","综合管理类（A类）","综合管理类岗位",11,1,"本科、学士学位及以上",null,"不限",null,"限四项目人员"]
[220236,"盘州市刘官街道科技宣教文化信息服务中心",{"v":2,"d":"02"},"专业技术岗位","文化事业管理、信息宣传服务。","综合管理类（A类）","综合管理类岗位",11,1,"本科、学士学位及以上",null,"新闻学、广播电视学、广告学、创博学、编辑出版学"]
[220237,"盘州市刘官街道综合服务中心",{"v":1,"d":"01"},"管理岗位","从事农业农村、产业发展等管理","综合管理类（A类）","综合管理类岗位",11,1,"本科、学士学位及以上",null,"农学、林学、畜牧兽医与管理、农业工程、农业机械及其自动化、农业资源与环境、农业建筑环境与能源工程等专业。"]
[220238,"盘州市刘官街道卫生服务中心",{"v":1,"d":"01"},"专业技术岗位","放射技术","医疗卫生类（E类）","医学技术岗位",55,1,"大专及以上","医学影像技术"]
[220238,"盘州市刘官街道卫生服务中心",{"v":2,"d":"02"},"专业技术岗位","检验技术","医疗卫生类（E类）","医学技术岗位",55,1,"大专及以上","医学检验技术、卫生检验与检疫技术"]
[220239,"盘州市刘官街道财政所",{"v":1,"d":"01"},"管理岗位","从事财务管理、审计、会计等","综合管理类（A类）","综合管理类岗位",11,1,"本科、学士学位及以上","-","会计学、统计管理、审计学"]
[220240,"盘州市坪地乡政务服务中心",{"v":1,"d":"01"},"管理岗位","政务活动等","综合管理类（A类）","综合管理类岗位",11,1,"大专及以上","不限","不限","不限","限盘州市户籍报考"]
[220241,"盘州市坪地乡卫生院",{"v":1,"d":"01"},"专业技术岗位","基本医疗等","医疗卫生类（E类）","中医临床岗位",51,1,"大专及以上","中医学","中医学","中医学类"]
[220242,"盘州市民主镇扶贫工作站",{"v":1,"d":"01"},"管理岗位","扶贫工作","综合管理类（A类）","综合管理类岗位",11,1,"大专及以上","不限","不限","不限","限盘州市户籍报考"]
[220243,"盘州市民主镇卫生院",{"v":1,"d":"01"},"专业技术岗位","会计","综合管理类（A类）","综合管理类岗位",11,1,"大专及以上","会计及相关专业","会计及相关专业","不限"]
[220244,"盘州市民主镇科技宣教文化信息服务中心",{"v":1,"d":"01"},"管理岗位","从事科技宣教文化相关工作","综合管理类（A类）","综合管理类岗位",11,1,"大专及以上","不限","不限","不限","限盘州市户籍报考"]
[220245,"盘州市普田乡卫生院",{"v":1,"d":"01"},"专业技术岗位","药剂岗位","医疗卫生类（E类）","药剂岗位",53,1,"大专及以上","药学","药学专","不限"]
[220246,"盘州市柏果镇卫生院",{"v":1,"d":"01"},"专业技术岗位","临床医学","医疗卫生类（E类）","西医临床岗位",52,2,"大专及以上","临床医学","临床医学","临床医学"]
[220246,"盘州市柏果镇卫生院",{"v":2,"d":"02"},"专业技术岗位","临床医学","医疗卫生类（E类）","西医临床岗位",52,2,"大专及以上","临床医学","临床医学","临床医学","限2020年应届毕业生报考"]
[220247,"盘州市大山镇政务服务中心",{"v":1,"d":"01"},"管理岗位","办公室日常工作","综合管理类（A类）","综合管理类岗位",11,1,"大专及以上","不限","不限","不限","限盘州市户籍报考"]
[220248,"盘州市大山镇扶贫工作站",{"v":1,"d":"01"},"管理岗位","办公室日常工作","综合管理类（A类）","综合管理类岗位",11,1,"大专及以上","不限","不限","不限","限盘州市建档立卡贫困户报考"]
[220249,"盘州市大山镇城镇规划建设管理所",{"v":1,"d":"01"},"专业技术岗位","办公室日常工作","综合管理类（A类）","综合管理类岗位",11,1,"大专及以上","不限","不限","不限","限盘州市户籍报考"]
[220250,"盘州市大山镇人力资源和社会保障服务中心",{"$f":"IF(B238=B237,C237+1,1)","v":{"v":1,"d":"01"}},"管理岗位","办公室日常工作","综合管理类（A类）","综合管理类岗位",11,2,"大专及以上","不限","不限","不限","限盘州市户籍报考"]
[220251,"盘州市大山镇留守儿童关爱服务中心",{"v":1,"d":"01"},"管理岗位","办公室日常工作","综合管理类（A类）","综合管理类岗位",11,1,"大专及以上","不限","不限","不限","限盘州市户籍报考"]
[220252,"盘州市大山镇生态建设旅游服务中心",{"v":1,"d":"01"},"专业技术岗位","办公室日常工作","综合管理类（A类）","综合管理类岗位",11,1,"大专及以上","不限","不限","不限","限盘州市户籍报考"]
[220253,"盘州市大山镇卫生院",{"v":1,"d":"01"},"管理岗位","办公室日常工作","综合管理类（A类）","综合管理类岗位",11,1,"大专及以上","计算机及相关专业","计算机及相关专业","不限"]
[220253,"盘州市大山镇卫生院",{"v":2,"d":"02"},"专业技术岗位","从事临床工作","医疗卫生类（E类）","西医临床岗位",52,1,"大专及以上","临床医学、中西医结合、中医学","临床医学类","儿科学、妇产科学、外科学"]
[220254,"盘州市大山财政所",{"v":1,"d":"01"},"管理岗位","从事会计及相关工作","综合管理类（A类）","综合管理类岗位",11,3,"大专及以上","会计及相关专业","会计及相关专业","财政学（含：税收学）、金融学（含：保险学）"]
[220255,"盘州市淤泥乡留守儿童关爱服务中心",{"v":1,"d":"01"},"管理岗位","单位日常工作","综合管理类（A类）","综合管理类岗位",11,1,"大专及以上","不限","不限","不限","限盘州市户籍报考"]
[220256,"盘州市淤泥乡政务服务中心",{"v":1,"d":"01"},"管理岗位","单位日常工作","综合管理类（A类）","综合管理类岗位",11,1,"大专及以上","不限","不限","不限","限盘州市户籍报考"]
[220257,"盘州市淤泥乡卫生院",{"v":1,"d":"01"},"管理岗位","单位日常工作","综合管理类（A类）","综合管理类岗位",11,1,"大专及以上","不限","不限","不限","限盘州市户籍报考"]
[220257,"盘州市淤泥乡卫生院",{"v":2,"d":"02"},"专业技术岗位","影像工作","医疗卫生类（E类）","医学技术岗位",55,2,"大专及以上","医学影像技术","医学影像技术","不限","限2020年应届毕业生报考"]
[220258,"盘州市淤泥乡财政所",{"v":1,"d":"01"},"管理岗位","单位日常工作","综合管理类（A类）","综合管理类岗位",11,1,"大专及以上","会计及相关专业","会计及相关专业","不限"]
[220259,"盘州市旧营乡卫生院",{"v":1,"d":"01"},"专业技术岗位","负责针灸、理疗工作","医疗卫生类（E类）","中医临床岗位",51,1,"大专及以上","针灸推拿","针灸推拿学","不限"]
[220259,"盘州市旧营乡卫生院",{"v":2,"d":"02"},"专业技术岗位","卫生院日常账务核算、编制卫生院的各项财务报表，会计凭证的录入、编制、审核，整理和保管财务会计档案等工作。","综合管理类（A类）","综合管理类岗位",11,1,"大专及以上","会计及相关专业","会计及相关专业","不限"]
[220260,"盘州市乌蒙镇政务服务中心",{"v":1,"d":"01"},"管理岗位","为政务活动提供服务","综合管理类（A类）","综合管理类岗位",11,1,"大专及以上","不限","不限","不限","限盘州市户籍报考"]
[{"$f":"IF(B251=B252,A251,A251+1)","v":220261},"盘州市乌蒙镇科技宣教文化信息服务中心",{"v":1,"d":"01"},"专业技术岗位","农村科技教育文化事业提供服务","综合管理类（A类）","综合管理类岗位",11,1,"大专及以上","影视多媒体技术、广播电视技术、新闻采编与制作","汉语言文学、新闻学、广播电视学","不限"]
[220262,"盘州市乌蒙镇扶贫工作站",{"v":1,"d":"01"},"管理岗位","为扶贫工作提供服务保障","综合管理类（A类）","综合管理类岗位",11,2,"大专及以上","不限","不限","不限","限盘州市建档立卡贫困户报考"]
[220263,"盘州市乌蒙镇卫生院",{"v":1,"d":"01"},"专业技术岗位","为群众提供基本医疗与预防保健服务","医疗卫生类（E类）","西医临床岗位",52,1,"大专及以上","临床医学、中医学、医学影像技术","临床医学、中医学、医学影像技术","不限"]
[220264,"盘州市盘关镇生态建设旅游服务中心",{"v":1,"d":"01"},"专业技术岗位","林业技术推广指导","综合管理类（A类）","综合管理类岗位",11,1,"大专及以上","林业技术、旅游管理、森林资源保护","林业工程、生态学、环境生态工程","林业工程、生态学、林学"]
[220265,"盘州市盘关镇群众工作站",{"v":1,"d":"01"},"管理岗位","办公室日常工作","综合管理类（A类）","综合管理类岗位",11,1,"大专及以上","不限","不限","不限","限盘州市户籍报考"]
[220266,"盘州市盘关镇盘江政务服务中心",{"v":1,"d":"01"},"管理岗位","办公室日常工作","综合管理类（A类）","综合管理类岗位",11,2,"大专及以上","不限","不限","不限","限盘州市户籍报考"]
[220267,"盘州市盘关镇农业综合服务中心",{"v":1,"d":"01"},"专业技术岗位","农业技术推广指导","综合管理类（A类）","综合管理类岗位",11,2,"大专及以上","作物生产技术、农产品质量检测、观光农业 ","农学、植物科学与技术、农业资源与环境","基础兽医学、农业昆虫与害虫防治、农产品加工及贮藏工程","限盘州市户籍报考"]
[220268,"盘州市盘关镇敬老院",{"v":1,"d":"01"},"管理岗位","办公室日常工作","综合管理类（A类）","综合管理类岗位",11,1,"大专及以上","不限","不限","不限","限盘州市户籍报考"]
[220269,"盘州市盘关镇财政所",{"v":1,"d":"01"},"管理岗位","财会工作","综合管理类（A类）","综合管理类岗位",11,2,"大专及以上","财务管理、会计、经济管理","财务管理、会计学、经济学","会计学、区域经济学、劳动经济学","限盘州市户籍报考"]
[220270,"盘州市盘关镇卫生院",{"v":1,"d":"01"},"专业技术岗位","临床","医疗卫生类（E类）","西医临床岗位",52,2,"大专及以上","临床医学、医学影像技术","临床医学、医学影像技术、麻醉学","临床医学、麻醉学"]
[220271,"盘州市两河财政所",{"v":1,"d":"01"},"管理岗位","财政所日常工作","综合管理类（A类）","综合管理类岗位",11,1,"本科及以上","-","会计学、经济学、财务管理","会计学、经济学、财务管理"]
[220272,"盘州市竹海镇农业综合服务中心",{"v":1,"d":"01"},"专业技术岗位","农业农技推广、畜牧业、农业产业等技术推广提供服务。  ","综合管理类（A类）","综合管理类岗位",11,1,"大专及以上","不限","不限","不限","限盘州市户籍报考"]
[220273,"盘州市竹海镇科技宣教文化信息服务中心",{"v":1,"d":"01"},"专业技术岗位","为农村科技教育文化事业提供服务，促进农村精神文明建设。","综合管理类（A类）","综合管理类岗位",11,1,"大专及以上","不限","不限","不限","限盘州市户籍报考"]
[220274,"盘州市竹海镇城镇规划建设管理所",{"v":1,"d":"01"},"专业技术岗位","为城镇规划、环境卫生、道路交通安全提供服务保障。","综合管理类（A类）","综合管理类岗位",11,1,"大专及以上","不限","不限","不限","限盘州市户籍报考"]
[220275,"盘州市竹海镇珠东政务服务中心",{"v":1,"d":"01"},"管理岗位","为全镇政务工作提供服务，承办党委政府交办的其他事项。","综合管理类（A类）","综合管理类岗位",11,1,"大专及以上","不限","不限","不限","限盘州市户籍报考"]
[220276,"盘州市竹海财政所",{"v":1,"d":"01"},"管理岗位","为镇经济发展提供财政保障","综合管理类（A类）","综合管理类岗位",11,2,"大专及以上","会计及相关专业","会计及相关专业","会计学、财务管理，财政学"]
[220277,"盘州市竹海镇卫生院",{"v":1,"d":"01"},"专业技术岗位","为群众提供医疗与预防保健、计划生育技术服务","医疗卫生类（E类）","公共卫生管理岗位",56,2,"大专及以上","临床医学","临床医学","临床医学","限2020年应届毕业生报考"]
[220278,"盘州市响水镇人力资源和社会保障服务中心",{"v":1,"d":"01"},"管理岗位","日常管理工作","综合管理类（A类）","综合管理类岗位",11,1,"大专及以上","不限","不限","不限","限盘州市户籍报考"]
[220279,"盘州市响水镇留守儿童关爱服务中心",{"$f":"IF(B270=B269,C269+1,1)","v":{"v":1,"d":"01"}},"管理岗位","日常管理工作","综合管理类（A类）","综合管理类岗位",11,1,"大专及以上","不限","不限","不限","限盘州市户籍报考"]
[220280,"盘州市响水镇城镇规划建设管理所",{"v":1,"d":"01"},"专业技术岗位","城镇规划管理工作","综合管理类（A类）","综合管理类岗位",11,1,"大专及以上","不限","不限","不限","限盘州市户籍报考"]
[220281,"盘州市响水镇扶贫工作站",{"v":1,"d":"01"},"管理岗位","日常管理工作","综合管理类（A类）","综合管理类岗位",11,1,"大专及以上","不限","不限","不限","限盘州市建档立卡贫困户报考"]
[220282,"盘州市响水镇农业综合服务中心",{"v":1,"d":"01"},"专业技术岗位","农业技术推广指导","综合管理类（A类）","综合管理类岗位",11,3,"大专及以上","不限","不限","不限","限盘州市户籍报考"]
[220283,"盘州市响水镇卫生院",{"v":1,"d":"01"},"专业技术岗位","临床医疗工作","医疗卫生类（E类）","医学技术岗位",55,1,"大专及以上","不限","不限","不限","具有助理医师及以上职称（考试成绩通过者视为具有）"]
[220283,"盘州市响水镇卫生院",{"v":2,"d":"02"},"管理岗位","日常管理工作","医疗卫生类（E类）","公共卫生管理岗位",56,1,"大专及以上","不限","不限","不限","限盘州市户籍报考"]
[220284,"盘州市保田镇城镇规划建设管理所",{"v":1,"d":"01"},"专业技术岗位","规划所日常工作","综合管理类（A类）","综合管理类岗位",11,2,"大专及以上","建筑学、土木工程、交通运输工程、城乡规划学","不限","不限","限盘州市户籍报考"]
[220285,"盘州市保田镇农业综合服务中心",{"v":1,"d":"01"},"专业技术岗位","农业中心日常工作","综合管理类（A类）","综合管理类岗位",11,3,"大专及以上","作物学、园艺学、农业资源与环境、植物保护、畜牧学、兽医学、林学、水产学、草学","不限","不限","限盘州市户籍报考"]
[220286,"盘州市保田镇扶贫工作站",{"v":1,"d":"01"},"管理岗位","扶贫站日常工作","综合管理类（A类）","综合管理类岗位",11,1,"大专及以上","不限","不限","不限","限盘州市建档立卡贫困户报考"]
[220287,"盘州市保田镇财政所",{"v":1,"d":"01"},"管理岗位","财政所日常工作","综合管理类（A类）","综合管理类岗位",11,1,"大专及以上","会计及相关专业","会计及相关专业","会计学、财务管理，财政学","限盘州市户籍报考"]
[220288,"盘州市保田镇卫生院",{"v":1,"d":"01"},"专业技术岗位","卫生院医疗工作","医疗卫生类（E类）","医学技术岗位",55,1,"大专及以上","医学影像技术、放射医学","医学影像技术、放射医学","医学影像技术、放射医学","限2020年应届毕业生报考"]
[220288,"盘州市保田镇卫生院",{"v":2,"d":"02"},"专业技术岗位","卫生院医疗工作","医疗卫生类（E类）","医学技术岗位",55,1,"大专及以上","中医学、中西医结合、中药学","中医学、中西医结合、中药学","中医学、中西医结合、中药学","限2020年应届毕业生报考"]
[220289,"盘州市丹霞镇扶贫工作站",{"v":1,"d":"01"},"管理岗位","扶贫工作","综合管理类（A类）","综合管理类岗位",11,1,"大专及以上","不限","不限","不限","限盘州市建档立卡贫困户报考"]
[220290,"盘州市丹霞镇群众工作站",{"v":1,"d":"01"},"管理岗位","群众工作","综合管理类（A类）","综合管理类岗位",11,1,"大专及以上","不限","不限","不限","限盘州市户籍报考"]
[{"$f":"IF(B283=B284,A283,A283+1)","v":220291},"盘州市丹霞镇留守儿童关爱服务中心",{"v":1,"d":"01"},"管理岗位","留守儿童关爱服务","综合管理类（A类）","综合管理类岗位",11,1,"大专及以上","不限","不限","不限","限盘州市户籍报考"]
[220292,"盘州市丹霞镇政务服务中心",{"v":1,"d":"01"},"管理岗位","政务服务","综合管理类（A类）","综合管理类岗位",11,1,"大专及以上","不限","不限","不限","限盘州市户籍报考"]
[220293,"盘州市保基乡群众工作站",{"v":1,"d":"01"},"管理岗位","化解基层矛盾纠纷","综合管理类（A类）","综合管理类岗位",11,1,"大专及以上","土建大类","建筑类","不限"]
[220294,"盘州市保基乡敬老院",{"v":1,"d":"01"},"管理岗位","为农村五保供养对象和农村其他老年人提供养老服务","综合管理类（A类）","综合管理类岗位",11,1,"大专及以上","不限","不限","不限","限盘州市户籍报考"]
[220295,"盘州市保基乡卫生院",{"v":1,"d":"01"},"专业技术岗位","医护人员","医疗卫生类（E类）","医学技术岗位",55,1,"大专及以上","医学检验技术","医学检验技术","不限","具有检验士资格证（考试成绩通过者视为具有）"]
[220296,"盘州市鸡场坪镇卫生院",{"v":1,"d":"01"},"专业技术岗位","内外妇儿科临床工作","医疗卫生类（E类）","西医临床岗位",52,4,"大专及以上","临床医学","不限","不限","具有执业助理医师资格证（考试成绩通过者视为具有）"]
[220297,"盘州市鸡场坪镇农业综合服务中心",{"v":1,"d":"01"},"专业技术岗位","农业技术推广指导","综合管理类（A类）","综合管理类岗位",11,1,"本科、学士学位及以上","-","农学类","不限"]
[220298,"盘州市鸡场坪镇人力资源和社会保障服务中心",{"v":1,"d":"01"},"管理岗位","人力资源开发、养老保险、农村合作医疗及其他社会救助劳动保障服务","综合管理类（A类）","综合管理类岗位",11,1,"高中及以上","不限","不限","不限","限优秀社区党组织书记报考"]
[220299,"盘州市鸡场坪镇滑石政务服务中心",{"v":1,"d":"01"},"管理岗位","政务便民服务","综合管理类（A类）","综合管理类岗位",11,1,"本科、学士学位及以上","-","不限","不限","限盘州市户籍报考"]
[220300,"盘州市鸡场坪镇计划生育协会",{"v":1,"d":"01"},"管理岗位","宣传贯彻落实人口和计划生育法律、法规和政策","综合管理类（A类）","综合管理类岗位",11,1,"本科、学士学位及以上","-","不限","不限","限盘州市户籍报考"]
[220301,"盘州市双凤镇政务服务中心",{"v":1,"d":"01"},"管理岗位","群众“一站式”服务窗口","综合管理类（A类）","综合管理类岗位",11,1,"大专及以上","不限","不限","不限","限盘州市户籍报考"]
[220302,"盘州市双凤镇群众工作站",{"v":1,"d":"01"},"管理岗位","矛盾纠纷调处","综合管理类（A类）","综合管理类岗位",11,1,"大专及以上","不限","不限","不限","限盘州市建档立卡贫困户报考"]
[220303,"盘州市双凤镇计划生育协会",{"v":1,"d":"01"},"管理岗位","落实人口计划生育政策","综合管理类（A类）","综合管理类岗位",11,1,"大专及以上","不限","不限","不限","限盘州市户籍报考"]
[220304,"盘州市双凤镇卫生院",{"v":1,"d":"01"},"专业技术岗位","公共卫生管理及服务","医疗卫生类（E类）","西医临床岗位",52,1,"大专及以上","临床医学","临床医学","不限"]
[220304,"盘州市双凤镇卫生院",{"v":2,"d":"02"},"专业技术岗位","公共卫生管理及服务","医疗卫生类（E类）","医学技术岗位",55,1,"大专及以上","医学影像技术","医学影像技术","不限"]
[220305,"盘州市双凤财政所",{"v":1,"d":"01"},"管理岗位","从事会计业务工作","综合管理类（A类）","综合管理类岗位",11,2,"大专及以上","不限","不限","不限","限盘州市户籍报考"]
[220306,"盘州市普古乡扶贫工作站",{"v":1,"d":"01"},"管理岗位","负责单位日常工作","综合管理类（A类）","综合管理类岗位",11,1,"大专及以上","不限","不限","不限","限盘州市建档立卡贫困户报考"]
[220307,"盘州市普古乡留守儿童关爱服务中心",{"v":1,"d":"01"},"管理岗位","负责单位日常工作","综合管理类（A类）","综合管理类岗位",11,1,"大专及以上","不限","不限","不限","限盘州市户籍报考"]
[220308,"盘州市普古乡科技宣教文化信息服务中心",{"$f":"IF(B302=B301,C301+1,1)","v":{"v":1,"d":"01"}},"管理岗位","负责单位日常工作","综合管理类（A类）","综合管理类岗位",11,1,"大专及以上","不限","不限","不限","限四项目人员"]
[220309,"盘州市普古乡群众工作站",{"v":1,"d":"01"},"管理岗位","负责单位日常工作","综合管理类（A类）","综合管理类岗位",11,1,"大专及以上","不限","不限","不限","限盘州市户籍报考，限男性"]
[220309,"盘州市普古乡群众工作站",{"v":2,"d":"02"},"管理岗位","负责单位日常工作","综合管理类（A类）","综合管理类岗位",11,1,"大专及以上","不限","不限","不限","限盘州市户籍报考，限女性"]
[220310,"盘州市英武镇卫生院",{"v":1,"d":"01"},"专业技术岗位","西医临床诊疗服务","医疗卫生类（E类）","西医临床岗位",52,2,"大专及以上","临床医学","临床医学","不限","具有执业助理医师及以上资格证书（考试成绩通过者视为具有）"]
[220310,"盘州市英武镇卫生院",{"v":2,"d":"02"},"专业技术岗位","中医临床诊疗服务","医疗卫生类（E类）","中医临床岗位",51,1,"大专及以上","不限","中医学","不限","具有执业助理医师及以上资格证书（考试成绩通过者视为具有）"]
[220310,"盘州市英武镇卫生院",{"v":3,"d":"03"},"专业技术岗位","临床护理服务","医疗卫生类（E类）","护理岗位",54,1,"大专及以上","护理","护理学","不限","具有执业护士及以上资格（考试成绩通过者视为具有）"]
[220311,"盘州市英武财政所",{"v":1,"d":"01"},"管理岗位","财政所日常工作","综合管理类（A类）","综合管理类岗位",11,1,"大专及以上","不限","会计学、财务管理、经济学","不限"]
[220312,"盘州市新民镇农业综合服务中心  ",{"v":1,"d":"01"},"专业技术岗位","农业技术推广指导","综合管理类（A类）","综合管理类岗位",11,1,"大专及以上",null,"植物生产类、自然保护与环境生态类、动物生产类、动物医学类、林学类、水产类、草学类","作物学、园艺学、农业资源与环境、植物保护、畜牧学、兽医学、林学、水产、草学"]
[220313,"盘州市新民镇生态建设旅游服务中心",{"v":1,"d":"01"},"专业技术岗位","林业技术推广指导、地质灾害防治、水利与水资源建设与利用、环境保护等","综合管理类（A类）","综合管理类岗位",11,1,"大专及以上",null,"林学类、地质学类、生物科学类、水利类、测绘类、地质类、矿业类、农业工程类、林业工程类、环境科学与工程类、生物工程类","林学、林业工程、农业工程、水利工程、测绘科学与技术、地质资源与地质工程、环境科学与工程"]
[220314,"盘州市新民镇卫生院 ",{"v":1,"d":"01"},"专业技术岗位","临床医学日常工作","医疗卫生类（E类）","西医临床岗位",52,1,"大专及以上","临床医学、中医学、中西医结合","临床医学、中医学、中西医临床医学","临床医学、中医学、中西医结合临床"]
[220315,"盘州市石桥镇群众工作站",{"v":1,"d":"01"},"管理岗位","群众工作站日常工作","综合管理类（A类）","综合管理类岗位",11,1,"大专及以上","不限","不限","不限","限盘州市户籍报考"]
[220316,"盘州市石桥镇计划生育协会",{"v":1,"d":"01"},"管理岗位","计划生育协会日常工作","综合管理类（A类）","综合管理类岗位",11,1,"大专及以上","不限","不限","不限","限盘州市户籍报考"]
[220317,"盘州市石桥镇科技宣教文化信息服务中心",{"v":1,"d":"01"},"专业技术岗位","科技宣教文化信息服务中心日常工作","综合管理类（A类）","综合管理类岗位",11,2,"大专及以上","广播电视技术、新闻采编与制作、摄影摄像技术","新闻传播学类","新闻与传播、新闻学、传播学"]
[220318,"盘州市石桥镇城镇规划建设管理所",{"v":1,"d":"01"},"专业技术岗位","城镇规划建设管理所日常工作","综合管理类（A类）","综合管理类岗位",11,1,"大专及以上","城镇规划、城市管理与监察、公路运输与管理","建筑学、城乡规划、风景园林、","城乡规划学、城市规划、风景园林学"]
[220319,"盘州市石桥镇扶贫工作站",{"v":1,"d":"01"},"管理岗位","扶贫工作站日常工作","综合管理类（A类）","综合管理类岗位",11,1,"大专及以上","不限","不限","不限","限盘州市建档立卡贫困户报考"]
[220320,"盘州市石桥镇人力资源和社会保障服务中心",{"v":1,"d":"01"},"管理岗位","人力资源和社会保障服务中心日常工作","综合管理类（A类）","综合管理类岗位",11,2,"大专及以上","不限","不限","不限","限盘州市户籍报考"]
[220321,"盘州市石桥镇敬老院",{"v":1,"d":"01"},"管理岗位","敬老院日常工作","综合管理类（A类）","综合管理类岗位",11,1,"大专及以上","不限","不限","不限","限盘州市户籍报考"]
[220322,"盘州市石桥镇政务服务中心",{"v":1,"d":"01"},"管理岗位","政务服务中心日常工作","综合管理类（A类）","综合管理类岗位",11,1,"大专及以上","不限","不限","不限","限盘州市户籍报考"]
[220323,"盘州市石桥镇生态建设旅游服务中心",{"v":1,"d":"01"},"专业技术岗位","生态建设旅游服务中心日常工作","综合管理类（A类）","综合管理类岗位",11,2,"大专及以上","林业技术、森林资源保护、园林技术 ","林学类","林学类、植物保护"]
[220324,"盘州市羊场乡城镇规划建设管理所",{"v":1,"d":"01"},"专业技术岗位","为城镇规划、环境卫生、道路交通安全提供服务保障","综合管理类（A类）","综合管理类岗位",11,1,"大专及以上","不限","不限","不限","限盘州市户籍报考"]
[220325,"盘州市羊场乡生态建设旅游服务中心",{"v":1,"d":"01"},"专业技术岗位","为生态建设、旅游发展、水务及林业技术推广、环境监测与保护等提供服务保障","综合管理类（A类）","综合管理类岗位",11,1,"大专及以上","不限","不限","不限","限盘州市户籍报考"]
[220326,"盘州市羊场乡农业综合服务中心",{"v":1,"d":"01"},"专业技术岗位","为农业农（技）机推广、乡镇企业、畜牧事业、农业产业化、农村土地承包经营权流转提供服务保障。","综合管理类（A类）","综合管理类岗位",11,2,"大专及以上","不限","不限","不限","限盘州市户籍报考"]
[220327,"盘州市羊场乡人力资源和社会保障服务中心",{"v":1,"d":"01"},"管理岗位","提供人力资源开发、养老保险、农村合作医疗及其他社会救助劳动保障服务。","综合管理类（A类）","综合管理类岗位",11,1,"大专及以上","不限","不限","不限","限盘州市建档立卡贫困户报考"]
[220328,"盘州市羊场乡卫生院",{"v":1,"d":"01"},"专业技术岗位","为群众提供基本医疗与预防保健、计划生育技术服务。","医疗卫生类（E类）","医学技术岗位",55,1,"大专及以上","医学影像","医学影像","医学影像"]
[220328,"盘州市羊场乡卫生院",{"v":2,"d":"02"},"专业技术岗位","为群众提供基本医疗与预防保健、计划生育技术服务。","医疗卫生类（E类）","公共卫生管理岗位",56,1,"大专及以上","公共卫生管理类","公共卫生管理类","公共卫生管理类"]
[220328,"盘州市羊场乡卫生院",{"v":3,"d":"03"},"专业技术岗位","为群众提供基本医疗与预防保健、计划生育技术服务。","医疗卫生类（E类）","西医临床岗位",52,2,"大专及以上","临床医学类","临床医学类","临床医学类","限2020年应届毕业生报考"]
[]
["填表人：                             联系电话：座机：                    手机： "]
["注意事项："]
["1、单位代码为3位（不可重复编码），职位代码为2位；\n2、“职位名称”栏填写为“专业技术人员”或“管理人员”；\n3、“职位简介”栏内填写招考职位的简要介绍，如“初中语文教育教学”、“农业技术推广指导”等；\n4、“学历”栏内填写招考职位所需学历要求，如“大专及以上”、“全日制大专及以上”等；\n5、招考职位若需其他条件的，可在“其他资格条件栏”内填写，如“有初级中学教师资格证书”等。\n"]

{"sheet":"考试类别具体说明","index":1,"n_rows":14,"n_cols":7,"rows_kept":14,"merged":[[0,1,0,6],[1,0,2,0],[1,2,2,2],[7,0,12,0],[7,1,12,1],[7,6,12,6],[13,1,13,6]]}
[null,"考试类别具体说明"]
["一级分类（级别）","级别","二级分类（专业）","专业","考试类","综合应","职业能力"]
[null,"代码",null,"代码","别代码","用能力","倾向测验"]
["综合管理类（A类）",1,"综合管理类岗位",11,11,"A类","A类"]
["社会科学专技类（B类）",2,"社会科学专技类岗位",21,21,"B类","B类"]
["自然科学专技类（C类）",3,"自然科学专技类岗位",31,31,"★C类","C类"]
["中小学教师类（D类）",4,"中小学教师类岗位",41,41,"D类","D类"]
["医疗卫生类（E类）",5,"中医临床岗位",51,51,"E类","E类"]
[null,null,"西医临床岗位",52,52,"（合订本，由考生选做相应部分）"]
[null,null,"药剂岗位",53,53]
[null,null,"护理岗位",54,54]
[null,null,"医学技术岗位",55,55]
[null,null,"公共卫生管理岗位",56,56]
[null,"★综合应用能力（C类）考试作答时需使用直尺，各地制作在准考证、公布的考场规则和考生须知中均应强调，参加《综合应用能力（C类）》一科考试时，须携带的文具包括：黑色字迹的签字笔或钢笔、直尺（应为无计算、存储或通信功能的普通直尺）、2B铅笔、橡皮。务必使参加综合应用能力C类的考生，以及负责该科目的监考老师在开考前明确直尺为必需的作答工具。"]